lending/lending_fUSD_20250808
["ID","MTS","AMOUNT","RATE_DAILY","PERIOD"]
[378023608,1754673040723,-400.0,0.00018393,2]
[378023609,1754673040732,-400.0,0.00018393,2]
[378023610,1754673040742,-400.0,0.00018393,2]
[378023611,1754673040755,-400.0,0.00018393,2]
[378023612,1754673040764,-400.0,0.00018393,2]
[378023613,1754673040773,-400.0,0.00018393,2]
[378023614,1754673040783,-400.0,0.00018393,2]
[378023615,1754673040794,-400.0,0.00018393,2]
[378023616,1754673040803,-400.0,0.00018393,2]
[378023617,1754673040814,-400.0,0.00018393,2]
[378023618,1754673040825,-400.0,0.00018393,2]
[378023619,1754673040837,-427.97,0.00018393,2]
[378023620,1754673040846,-400.0,0.00018393,2]
[378023621,1754673040856,-400.0,0.00018393,2]
[378023622,1754673040865,-400.0,0.00018393,2]
[378023623,1754673040875,-400.0,0.00018393,2]
[378023624,1754673040884,-470.40759288,0.00018393,2]
[378023625,1754673040895,-400.0,0.00018393,2]
[378023626,1754673040905,-400.0,0.00018393,2]
[378023627,1754673040915,-1140.72,0.00018393,2]
[378023628,1754673040926,-400.0,0.00018393,2]
[378023629,1754673040935,-400.0,0.00018393,2]
[378023630,1754673040945,-179.82530374,0.00018393,2]
[378023631,1754673040955,-400.0,0.00018393,2]
[378023632,1754673040964,-400.0,0.00018393,2]
[378023633,1754673040974,-400.0,0.00018393,2]
[378023634,1754673040984,-400.0,0.00018393,2]
[378023635,1754673040994,-1000.0,0.00018393,2]
[378023636,1754673041005,-400.0,0.00018393,2]
[378023637,1754673041015,-400.0,0.00018393,2]
[378023638,1754673041025,-400.0,0.00018393,2]
[378023639,1754673041035,-500.0,0.00018393,2]
[378023640,1754673041045,-400.0,0.00018393,2]
[378023641,1754673041056,-2183.86,0.00018393,2]
[378023642,1754673041067,-400.0,0.00018393,2]
[378023643,1754673041078,-812.11,0.00018393,2]
[378023644,1754673041089,-400.0,0.00018393,2]
[378023645,1754673041099,-400.0,0.00018393,2]
[378023646,1754673041111,-507.03,0.00018393,2]
[378023647,1754673041121,-400.0,0.00018393,2]
[378023648,1754673041136,-400.0,0.00018393,2]
[378023649,1754673041160,-459.15,0.00018393,2]
[378023650,1754673041174,-300.0,0.00018393,2]
[378023651,1754673041184,-400.0,0.00018393,2]
[378023652,1754673041193,-414.53,0.00018393,2]
[378023653,1754673041202,-685.77,0.00018393,2]
[378023654,1754673041211,-400.0,0.00018393,2]
[378023655,1754673041221,-400.0,0.00018393,2]
[378023656,1754673041230,-412.64043742,0.00018393,2]
[378023657,1754673041239,-400.0,0.00018393,2]
[378023658,1754673041249,-712.63,0.00018393,2]
[378023659,1754673041258,-400.0,0.00018393,2]
[378023660,1754673041268,-588.45,0.00018393,2]
[378023661,1754673041277,-808.83,0.00018393,2]
[378023662,1754673041286,-400.0,0.00018393,2]
[378023663,1754673041296,-400.0,0.00018393,2]
[378023664,1754673041305,-408.19,0.00018393,2]
[378023665,1754673041315,-400.0,0.00018393,2]
[378023666,1754673041324,-400.0,0.00018393,2]
[378023667,1754673041333,-764.62,0.00018393,2]
[378023668,1754673041342,-438.51,0.00018393,2]
[378023669,1754673041351,-400.0,0.00018393,2]
[378023670,1754673041363,-413.65,0.00018393,2]
[378023671,1754673041373,-400.0,0.00018393,2]
[378023672,1754673041382,-1107.31,0.00018393,2]
[378023673,1754673041391,-497.97,0.00018393,2]
[378023674,1754673041401,-808.32,0.00018393,2]
[378023675,1754673041410,-400.0,0.00018393,2]
[378023676,1754673041419,-440.91,0.00018393,2]
[378023677,1754673041428,-400.0,0.00018393,2]
[378023678,1754673041438,-400.0,0.00018393,2]
[378023679,1754673041447,-417.22,0.00018393,2]
[378023680,1754673041457,-400.0,0.00018393,2]
[378023681,1754673041466,-1052.53,0.00018393,2]
[378023682,1754673041475,-400.0,0.00018393,2]
[378023683,1754673041484,-400.0,0.00018393,2]
[378023684,1754673041493,-1050.99,0.00018393,2]
[378023685,1754673041502,-812.05,0.00018393,2]
[378023686,1754673041512,-400.0,0.00018393,2]
[378023687,1754673041521,-400.0,0.00018393,2]
[378023688,1754673041530,-400.0,0.00018393,2]
[378023689,1754673041540,-1041.87,0.00018393,2]
[378023690,1754673041550,-400.0,0.00018393,2]
[378023691,1754673041559,-555.25,0.00018393,2]
[378023692,1754673041568,-385.38583826,0.00018393,2]
[378023693,1754673041577,-400.0,0.00018393,2]
[378023694,1754673041586,-400.0,0.00018393,2]
[378023695,1754673041595,-497.91,0.00018393,2]
[378023696,1754673041604,-400.0,0.00018393,2]
[378023697,1754673041613,-400.0,0.00018393,2]
[378023698,1754673041622,-400.0,0.00018393,2]
[378023699,1754673041631,-400.0,0.00018393,2]
[378023700,1754673041640,-400.0,0.00018393,2]
[378023701,1754673041649,-842.9,0.00018393,2]
[378023702,1754673041658,-400.0,0.00018393,2]
[378023703,1754673041668,-400.0,0.00018393,2]
[378023704,1754673041677,-400.0,0.00018393,2]
[378023705,1754673041686,-1362.7,0.00018393,2]
[378023706,1754673041695,-485.11,0.00018393,2]
[378023707,1754673041704,-1196.83,0.00018393,2]
[378023708,1754673041713,-400.0,0.00018393,2]
[378023709,1754673041722,-716.94,0.00018393,2]
[378023710,1754673041732,-793.59,0.00018393,2]
[378023711,1754673041741,-400.0,0.00018393,2]
[378023712,1754673041750,-400.0,0.00018393,2]
[378023713,1754673041761,-400.0,0.00018393,2]
[378023714,1754673041770,-400.0,0.00018393,2]
[378023715,1754673041780,-400.0,0.00018393,2]
[378023716,1754673041789,-400.0,0.00018393,2]
[378023717,1754673041799,-400.0,0.00018393,2]
[378023718,1754673041808,-492.73,0.00018393,2]
[378023719,1754673041817,-406.40713565,0.00018393,2]
[378023720,1754673041826,-972.33,0.00018393,2]
[378023721,1754673041836,-497.41,0.00018393,2]
[378023722,1754673041846,-1250.67,0.00018393,2]
[378023723,1754673041855,-1120.96,0.00018393,2]
[378023724,1754673041865,-246.67,0.00018393,2]
[378023725,1754673041875,-1014.39,0.00018393,2]
[378023726,1754673041884,-400.0,0.00018393,2]
[378023727,1754673041894,-400.0,0.00018393,2]
[378023728,1754673041904,-1274.58,0.00018393,2]
[378023729,1754673041913,-400.0,0.00018393,2]
[378023730,1754673041922,-1019.85,0.00018393,2]
[378023731,1754673041931,-400.0,0.00018393,2]
[378023732,1754673041940,-400.0,0.00018393,2]
[378023733,1754673041948,-777.46,0.00018393,2]
[378023734,1754673041956,-400.0,0.00018393,2]
[378023735,1754673041965,-993.87,0.00018393,2]
[378023736,1754673041974,-400.0,0.00018393,2]
[378023737,1754673041983,-400.0,0.00018393,2]
[378023738,1754673041992,-400.0,0.00018393,2]
[378023739,1754673042001,-400.0,0.00018393,2]
[378023740,1754673042011,-1556.25,0.00018393,2]
[378023741,1754673042020,-400.0,0.00018393,2]
[378023742,1754673042029,-400.0,0.00018393,2]
[378023743,1754673042038,-400.0,0.00018393,2]
[378023744,1754673042048,-400.0,0.00018393,2]
[378023745,1754673042057,-3071.04,0.00018393,2]
[378023746,1754673042066,-400.0,0.00018393,2]
[378023747,1754673042075,-400.0,0.00018393,2]
[378023748,1754673042084,-400.0,0.00018393,2]
[378023749,1754673042093,-400.0,0.00018393,2]
[378023750,1754673042102,-400.0,0.00018393,2]
[378023751,1754673042111,-400.0,0.00018393,2]
[378023752,1754673042120,-400.0,0.00018393,2]
[378023753,1754673042129,-400.0,0.00018393,2]
[378023754,1754673042138,-1234.23,0.00018393,2]
[378023755,1754673042147,-400.0,0.00018393,2]
[378023756,1754673042156,-400.0,0.00018393,2]
[378023757,1754673042165,-885.82,0.00018393,2]
[378023758,1754673042175,-400.0,0.00018393,2]
[378023759,1754673042183,-400.0,0.00018393,2]
[378023760,1754673042192,-400.0,0.00018393,2]
[378023761,1754673042202,-400.0,0.00018393,2]
[378023762,1754673042212,-400.0,0.00018393,2]
[378023763,1754673042222,-1039.48,0.00018393,2]
[378023764,1754673042231,-400.0,0.00018393,2]
[378023765,1754673042240,-1387.65,0.00018393,2]
[378023766,1754673042249,-400.0,0.00018393,2]
[378023767,1754673042258,-402.83640981,0.00018393,2]
[378023768,1754673042267,-400.0,0.00018393,2]
[378023769,1754673042276,-1084.1,0.00018393,2]
[378023770,1754673042286,-400.0,0.00018393,2]
[378023771,1754673042295,-400.0,0.00018393,2]
[378023772,1754673042304,-501.19,0.00018393,2]
[378023773,1754673042314,-400.0,0.00018393,2]
[378023774,1754673042323,-400.0,0.00018393,2]
[378023775,1754673042332,-824.7,0.00018393,2]
[378023776,1754673042341,-541.63,0.00018393,2]
[378023777,1754673042350,-400.0,0.00018393,2]
[378023778,1754673042359,-598.0,0.00018393,2]
[378023779,1754673042368,-400.0,0.00018393,2]
[378023780,1754673042378,-3338.67,0.00018393,2]
[378023781,1754673042387,-910.53,0.00018393,2]
[378023782,1754673042397,-400.0,0.00018393,2]
[378023783,1754673042406,-400.0,0.00018393,2]
[378023784,1754673042416,-548.2,0.00018393,2]
[378023785,1754673042426,-489.41,0.00018393,2]
[378023786,1754673042435,-400.0,0.00018393,2]
[378023787,1754673042444,-400.0,0.00018393,2]
[378023788,1754673042453,-1478.74,0.00018393,2]
[378023789,1754673042462,-713.73,0.00018393,2]
[378023790,1754673042471,-1827.3,0.00018393,2]
[378023791,1754673042481,-400.0,0.00018393,2]
[378023792,1754673042490,-400.0,0.00018393,2]
[378023793,1754673042500,-691.14,0.00018393,2]
[378023794,1754673042510,-999.34,0.00018393,2]
[378023795,1754673042519,-1482.25,0.00018393,2]
[378023796,1754673042529,-400.0,0.00018393,2]
[378023797,1754673042539,-1145.32,0.00018393,2]
[378023798,1754673042550,-2635.6,0.00018393,2]
[378023799,1754673042559,-465.22,0.00018393,2]
[378023800,1754673042568,-400.0,0.00018393,2]
[378023801,1754673042577,-400.0,0.00018393,2]
[378023802,1754673042587,-400.0,0.00018393,2]
[378023803,1754673042596,-4229.48,0.00018393,2]
[378023804,1754673042605,-400.0,0.00018393,2]
[378023805,1754673042615,-623.81,0.00018393,2]
[378023806,1754673042625,-703.96,0.00018393,2]
[378023807,1754673042635,-1423.01,0.00018393,2]
[378023808,1754673042644,-400.0,0.00018393,2]
[378023809,1754673042654,-1223.91,0.00018393,2]
[378023810,1754673042664,-796.56,0.00018393,2]
[378023811,1754673042673,-400.0,0.00018393,2]
[378023812,1754673042684,-400.0,0.00018393,2]
[378023813,1754673042693,-3229.2,0.00018393,2]
[378023814,1754673042703,-1295.7,0.00018393,2]
[378023815,1754673042712,-1050.02,0.00018393,2]
[378023816,1754673042722,-170.14098939,0.00018393,2]
[378023817,1754673042732,-523.71,0.00018393,2]
[378023818,1754673042742,-793.84,0.00018393,2]
[378023819,1754673042752,-1787.16,0.00018393,2]
[378023820,1754673042765,-400.0,0.00018393,2]
[378023821,1754673042775,-525.08,0.00018393,2]
[378023822,1754673042784,-400.0,0.00018393,2]
[378023823,1754673042794,-6291.97,0.00018393,2]
[378023824,1754673042804,-444.37,0.00018393,2]
[378023825,1754673042813,-799.5,0.00018393,2]
[378023826,1754673042823,-667.49,0.00018393,2]
[378023827,1754673042834,-684.73,0.00018393,2]
[378023828,1754673042844,-994.58,0.00018393,2]
[378023829,1754673042854,-1477.87,0.00018393,2]
[378023830,1754673042864,-1320.38,0.00018393,2]
[378023831,1754673042874,-527.6,0.00018393,2]
[378023832,1754673042884,-537.17,0.00018393,2]
[378023833,1754673042895,-1495.05,0.00018393,2]
[378023834,1754673042905,-445.05,0.00018393,2]
[378023835,1754673042916,-400.0,0.00018393,2]
[378023836,1754673042927,-662.07,0.00018393,2]
[378023838,1754673042946,-2689.24,0.00018393,2]
[378023840,1754673042963,-438.9,0.00018393,2]
[378023842,1754673042973,-1453.53,0.00018393,2]
[378023844,1754673042983,-447.33,0.00018393,2]
[378023846,1754673042995,-400.0,0.00018393,2]
[378023848,1754673043004,-400.0,0.00018393,2]
[378023849,1754673043014,-4120.32,0.00018393,2]
[378023851,1754673043023,-808.17,0.00018393,2]
[378023853,1754673043033,-1175.31,0.00018393,2]
[378023854,1754673043043,-757.13,0.00018393,2]
[378023855,1754673043052,-915.42,0.00018393,2]
[378023856,1754673043062,-1191.63,0.00018393,2]
[378023857,1754673043071,-690.47,0.00018393,2]
[378023858,1754673043081,-500.0,0.00018393,2]
[378023859,1754673043091,-3697.39,0.00018393,2]
[378023860,1754673043101,-469.89,0.00018393,2]
[378023862,1754673043110,-526.36,0.00018393,2]
[378023864,1754673043120,-4499.96,0.00018393,2]
[378023865,1754673043129,-400.0,0.00018393,2]
[378023866,1754673043139,-3972.3,0.00018393,2]
[378023867,1754673043148,-400.0,0.00018393,2]
[378023869,1754673043158,-2619.91,0.00018393,2]
[378023871,1754673043168,-400.0,0.00018393,2]
[378023874,1754673043177,-400.0,0.00018393,2]
[378023877,1754673043187,-400.0,0.00018393,2]
[378023879,1754673043196,-696.4,0.00018393,2]
[378023880,1754673043206,-834.87,0.00018393,2]
[378023881,1754673043216,-2776.04,0.00018393,2]
[378023882,1754673043225,-1111.79,0.00018393,2]
[378023883,1754673043235,-400.0,0.00018393,2]
[378023884,1754673043244,-1420.04,0.00018393,2]
[378023885,1754673043254,-1979.85,0.00018393,2]
[378023886,1754673043264,-518.14,0.00018393,2]
[378023887,1754673043273,-400.0,0.00018393,2]
[378023888,1754673043283,-10217.96,0.00018393,2]
[378023889,1754673043293,-1204.09,0.00018393,2]
[378023890,1754673043305,-897.43,0.00018393,2]
[378023891,1754673043315,-4090.08,0.00018393,2]
[378023892,1754673043325,-472.03,0.00018393,2]
[378023893,1754673043335,-400.0,0.00018393,2]
[378023894,1754673043345,-2735.96,0.00018393,2]
[378023895,1754673043355,-402.51482241,0.00018394,2]
[378023896,1754673043365,-400.0,0.00018394,2]
[378023897,1754673043376,-401.31406468,0.00018394,2]
[378023898,1754673043385,-400.0,0.00018394,2]
[378023899,1754673043395,-400.0,0.00018394,2]
[378023900,1754673043405,-400.0,0.00018394,2]
[378023901,1754673043415,-500.0,0.00018394,2]
[378023902,1754673043425,-169.2086281,0.00018394,2]
[378023903,1754673043435,-151.0,0.00018394,2]
[378023904,1754673043445,-400.0,0.00018394,2]
[378023905,1754673043454,-554.56,0.00018394,2]
[378023906,1754673043465,-1333.9,0.00018394,2]
[378023907,1754673043475,-1140.11,0.00018394,2]
[378023908,1754673043485,-431.39,0.00018394,2]
[378023909,1754673043495,-428.62,0.00018394,2]
[378023910,1754673043505,-1367.38,0.00018394,2]
[378023911,1754673043515,-400.0,0.00018394,2]
[378023912,1754673043525,-400.0,0.00018394,2]
[378023913,1754673043535,-523.93,0.00018394,2]
[378023914,1754673043546,-830.64,0.00018394,2]
[378023915,1754673043556,-540.88,0.00018394,2]
[378023916,1754673043567,-1300.34,0.00018394,2]
[378023917,1754673043577,-886.85,0.00018394,2]
[378023918,1754673043587,-1100.96,0.00018394,2]
[378023919,1754673043597,-1171.33,0.00018394,2]
[378023920,1754673043607,-4471.45714361,0.00018394,2]
[378023922,1754673043676,-469.88285639,0.00018394,2]
[378023925,1754673043686,-708.14,0.00018394,2]
[378023927,1754673043695,-708.44,0.00018394,2]
[378023929,1754673043705,-407.96,0.00018394,2]
[378023931,1754673043715,-1693.67673551,0.00018394,2]
[378023957,1754673044242,-74.18326449,0.00018394,2]
[378023958,1754673044253,-412.26,0.00018394,2]
[378023959,1754673044264,-741.75,0.00018394,2]
[378023960,1754673044275,-1604.16,0.00018394,2]
[378023961,1754673044285,-1002.23,0.00018394,2]
[378023962,1754673044296,-512.17,0.00018394,2]
[378023964,1754673044306,-3378.99,0.00018394,2]
[378023965,1754673044316,-400.0,0.00018394,2]
[378023966,1754673044325,-3288.6,0.00018394,2]
[378023967,1754673044335,-520.84,0.00018394,2]
[378023968,1754673044345,-400.0,0.00018394,2]
[378023969,1754673044354,-1383.82,0.00018394,2]
[378023970,1754673044364,-400.0,0.00018394,2]
[378023971,1754673044374,-2643.26,0.00018394,2]
[378023972,1754673044384,-427.64,0.00018394,2]
[378023973,1754673044394,-404.96,0.00018394,2]
[378023974,1754673044407,-1133.77,0.00018394,2]
[378023975,1754673044417,-3380.42,0.00018394,2]
[378023976,1754673044427,-1221.67,0.00018394,2]
[378023977,1754673044437,-1191.67,0.00018394,2]
[378023978,1754673044447,-1284.63,0.00018394,2]
[378023979,1754673044456,-400.0,0.00018394,2]
[378023980,1754673044466,-3339.59,0.00018394,2]
[378023981,1754673044475,-400.0,0.00018394,2]
[378023982,1754673044485,-1705.64,0.00018394,2]
[378023983,1754673044494,-1297.72,0.00018394,2]
[378023984,1754673044504,-4231.89,0.00018394,2]
[378023985,1754673044514,-400.0,0.00018394,2]
[378023986,1754673044523,-1362.45,0.00018394,2]
[378023987,1754673044537,-2436.93,0.00018394,2]
[378023988,1754673044556,-450.33,0.00018394,2]
[378023989,1754673044566,-426.63,0.00018394,2]
[378023990,1754673044576,-1000.0,0.00018394,2]
[378023991,1754673044587,-1932.89,0.00018394,2]
[378023992,1754673044596,-434.17,0.00018394,2]
[378023993,1754673044606,-1112.21,0.00018394,2]
[378023994,1754673044616,-453.41,0.00018394,2]
[378023995,1754673044628,-1306.51,0.00018394,2]
[378023996,1754673044638,-1940.96,0.00018394,2]
[378023997,1754673044649,-400.0,0.00018394,2]
[378023998,1754673044661,-746.47,0.00018394,2]
[378023999,1754673044671,-400.0,0.00018394,2]
[378024000,1754673044681,-1191.63,0.00018394,2]
[378024001,1754673044692,-440.63,0.00018394,2]
[378024002,1754673044702,-400.0,0.00018394,2]
[378024003,1754673044711,-1588.76,0.00018394,2]
[378024004,1754673044723,-1657.89,0.00018394,2]
[378024005,1754673044732,-2257.95,0.00018394,2]
[378024006,1754673044742,-1899.91,0.00018394,2]
[378024007,1754673044754,-1171.34,0.00018394,2]
[378024008,1754673044764,-7561.16,0.00018394,2]
[378024009,1754673044774,-2234.21,0.00018394,2]
[378024010,1754673044786,-1590.46,0.00018395,2]
[378024011,1754673044796,-2771.44,0.00018395,2]
[378024012,1754673044806,-1900.0,0.000184,6]
[378024013,1754673044816,-150.0,0.00018424,2]
[378024014,1754673044826,-6540.42764787,0.00018427,2]
[378024015,1754673044836,-2661.0265543,0.00018428,2]
[378024016,1754673044848,-5798.19178837,0.00018447,2]
[378024017,1754673044865,-168.0,0.00018475,2]
[378024018,1754673044882,-179.74693199,0.00018489,2]
[378024019,1754673044893,-150.0,0.00018493,2]
[378024020,1754673044904,-6540.42764787,0.00018495,2]
[378024021,1754673044915,-2661.0265543,0.00018495,2]
[378024022,1754673044925,-1180.41,0.000185,2]
[378024023,1754673044935,-1180.79,0.000185,2]
[378024024,1754673044946,-2900.0,0.000185,6]
[378024025,1754673044956,-6012.72488454,0.00018502,2]
[378024026,1754673044966,-168.0,0.00018512,2]
[378024027,1754673044977,-1000.0,0.00018515,2]
[378024028,1754673044988,-6235.19570527,0.00018557,2]
[378024029,1754673044997,-6540.42764787,0.00018562,2]
[378024030,1754673045008,-2661.0265543,0.00018563,2]
[378024031,1754673045017,-522.09063372,0.00018567,2]
[378024032,1754673045027,-796.74,0.000186,2]
[378024033,1754673045038,-796.74,0.000186,2]
[378024034,1754673045047,-796.74,0.000186,2]
[378024035,1754673045057,-245.4,0.000186,2]
[378024036,1754673045067,-3900.0,0.000186,6]
[378024037,1754673045078,-1052.53,0.00018603,2]
[378024038,1754673045090,-162.21554683,0.00018606,2]
[378024039,1754673045100,-6465.89794637,0.00018612,2]
[378024040,1754673045116,-222.0,0.00018616,2]
[378024041,1754673045126,-150.0,0.00018621,2]
[378024042,1754673045136,-6540.42764787,0.0001863,2]
[378024043,1754673045382,-2661.0265543,0.0001863,2]
[378024044,1754673045438,-400.0,0.00018665,2]
[378024045,1754673045448,-632.78,0.00018665,2]
[378024046,1754673045458,-400.0,0.00018665,2]
[378024047,1754673045468,-400.0,0.00018665,2]
[378024048,1754673045477,-461.88,0.00018666,2]
[378024049,1754673045487,-400.0,0.00018666,2]
[378024050,1754673045496,-400.0,0.00018666,2]
[378024051,1754673045506,-400.0,0.00018666,2]
[378024052,1754673045515,-400.0,0.00018666,2]
[378024053,1754673045530,-592.43,0.00018666,2]
[378024054,1754673045540,-400.0,0.00018666,2]
[378024055,1754673045549,-400.0,0.00018666,2]
[378024056,1754673045559,-729.07,0.00018666,2]
[378024057,1754673045568,-400.0,0.00018666,2]
[378024058,1754673045578,-400.0,0.00018666,2]
[378024059,1754673045587,-420.59,0.00018666,2]
[378024060,1754673045597,-400.0,0.00018666,2]
[378024061,1754673045607,-463.25,0.00018666,2]
[378024062,1754673045617,-504.78,0.00018666,2]
[378024063,1754673045626,-400.0,0.00018666,2]
[378024064,1754673045636,-475.54,0.00018666,2]
[378024065,1754673045646,-704.32,0.00018666,2]
[378024066,1754673045655,-668.87,0.00018666,2]
[378024067,1754673045664,-237.51,0.00018666,2]
[378024068,1754673045674,-400.0,0.00018666,2]
[378024069,1754673045685,-400.0,0.00018666,2]
[378024070,1754673045694,-400.0,0.00018666,2]
[378024071,1754673045704,-400.0,0.00018666,2]
[378024072,1754673045715,-663.03,0.00018666,2]
[378024073,1754673045726,-400.0,0.00018666,2]
[378024074,1754673045736,-400.0,0.00018666,2]
[378024075,1754673045746,-400.0,0.00018666,2]
[378024076,1754673045759,-400.0,0.00018666,2]
[378024077,1754673045770,-400.0,0.00018666,2]
[378024078,1754673045781,-400.0,0.00018666,2]
[378024079,1754673045792,-477.99,0.00018666,2]
[378024080,1754673045803,-400.0,0.00018666,2]
[378024081,1754673045812,-725.0,0.00018666,2]
[378024082,1754673045824,-244.99073312,0.00018666,2]
[378024083,1754673045837,-787.25,0.00018666,2]
[378024084,1754673045847,-400.0,0.00018666,2]
[378024085,1754673045856,-496.79,0.00018666,2]
[378024086,1754673045866,-400.0,0.00018666,2]
[378024087,1754673045875,-400.0,0.00018666,2]
[378024088,1754673045885,-845.39,0.00018666,2]
[378024089,1754673045895,-400.0,0.00018666,2]
[378024090,1754673045907,-494.82,0.00018666,2]
[378024091,1754673045917,-400.0,0.00018666,2]
[378024092,1754673045926,-685.25,0.00018666,2]
[378024093,1754673045936,-400.0,0.00018666,2]
[378024095,1754673045945,-601.49,0.00018666,2]
[378024096,1754673045954,-400.0,0.00018666,2]
[378024097,1754673045963,-897.29,0.00018666,2]
[378024098,1754673045973,-456.7,0.00018666,2]
[378024099,1754673045983,-400.0,0.00018666,2]
[378024100,1754673045993,-1042.76,0.00018666,2]
[378024101,1754673046002,-437.15,0.00018666,2]
[378024102,1754673046013,-400.0,0.00018666,2]
[378024103,1754673046023,-400.0,0.00018666,2]
[378024104,1754673046033,-400.0,0.00018666,2]
[378024105,1754673046044,-400.0,0.00018666,2]
[378024106,1754673046056,-539.69,0.00018666,2]
[378024107,1754673046067,-400.0,0.00018666,2]
[378024108,1754673046078,-400.0,0.00018666,2]
[378024109,1754673046088,-697.94,0.00018666,2]
[378024110,1754673046097,-288.14,0.00018666,2]
[378024111,1754673046107,-400.0,0.00018666,2]
[378024112,1754673046117,-400.0,0.00018666,2]
[378024114,1754673046126,-400.0,0.00018666,2]
[378024115,1754673046138,-837.25,0.00018666,2]
[378024116,1754673046147,-819.98,0.00018666,2]
[378024117,1754673046156,-1385.08,0.00018666,2]
[378024118,1754673046166,-476.78,0.00018666,2]
[378024119,1754673046175,-400.0,0.00018666,2]
[378024120,1754673046186,-400.0,0.00018666,2]
[378024121,1754673046196,-502.89,0.00018666,2]
[378024122,1754673046206,-716.36,0.00018666,2]
[378024123,1754673046216,-620.44,0.00018666,2]
[378024124,1754673046226,-400.0,0.00018666,2]
[378024125,1754673046237,-440.51,0.00018666,2]
[378024126,1754673046247,-400.0,0.00018666,2]
[378024127,1754673046257,-2811.91,0.00018666,2]
[378024128,1754673046266,-532.37,0.00018666,2]
[378024129,1754673046276,-400.0,0.00018666,2]
[378024130,1754673046285,-400.0,0.00018666,2]
[378024131,1754673046295,-400.0,0.00018666,2]
[378024132,1754673046306,-400.0,0.00018666,2]
[378024133,1754673046316,-400.0,0.00018666,2]
[378024134,1754673046326,-400.0,0.00018666,2]
[378024135,1754673046336,-241.92408645,0.00018666,2]
[378024136,1754673046359,-213.57646521,0.00018666,2]
[378024137,1754673046369,-525.45,0.00018666,2]
[378024138,1754673046379,-400.0,0.00018666,2]
[378024139,1754673046389,-688.29,0.00018666,2]
[378024141,1754673046398,-1994.14,0.00018666,2]
[378024142,1754673046407,-400.0,0.00018666,2]
[378024143,1754673046417,-400.0,0.00018666,2]
[378024144,1754673046427,-167.13713479,0.00018666,2]
[378024149,1754673046958,-151.0,0.00018394,2]
[378024150,1754673046968,-151.0,0.00018394,2]
[378024151,1754673046979,-232.86286521,0.00018666,2]
[378024152,1754673046997,-400.0,0.00018666,2]
[378024153,1754673047008,-590.65,0.00018666,2]
[378024154,1754673047018,-1290.19,0.00018666,2]
[378024155,1754673047029,-1069.54,0.00018666,2]
[378024156,1754673047039,-400.0,0.00018666,2]
[378024157,1754673047050,-400.0,0.00018666,2]
[378024158,1754673047059,-400.0,0.00018666,2]
[378024159,1754673047069,-400.0,0.00018666,2]
[378024160,1754673047079,-400.0,0.00018666,2]
[378024161,1754673047088,-432.36,0.00018666,2]
[378024162,1754673047098,-790.57,0.00018666,2]
[378024163,1754673047112,-400.0,0.00018666,2]